lending/lending_fUSD_20240710
["ID","MTS","AMOUNT","RATE_DAILY","PERIOD"]
[331695251,1720653036284,-178.24,0.00013866,2]
[331695252,1720653036293,-3958.74,0.00013866,2]
[331695253,1720653036302,-500.0,0.00013866,2]
[331695254,1720653036314,-278.12,0.00013866,2]
[331695255,1720653036324,-316.64,0.00013866,2]
[331695256,1720653036334,-500.0,0.00013866,2]
[331695257,1720653036344,-349.05,0.00013866,2]
[331695258,1720653036355,-409.8,0.00013866,2]
[331695259,1720653036365,-164.26,0.00013866,2]
[331695260,1720653036374,-1092.82,0.00013866,2]
[331695261,1720653036383,-500.0,0.00013866,2]
[331695262,1720653036393,-326.83,0.00013866,2]
[331695263,1720653036403,-197.21295557,0.00013866,2]
[331695264,1720653036412,-500.0,0.00013866,2]
[331695265,1720653036421,-500.0,0.00013866,2]
[331695266,1720653036431,-500.0,0.00013867,2]
[331695267,1720653036440,-262.48,0.00013867,2]
[331695268,1720653036450,-538.64,0.00013867,2]
[331695269,1720653036459,-398.27,0.00013867,2]
[331695270,1720653036468,-500.0,0.00013867,2]
[331695271,1720653036478,-540.41,0.00013867,2]
[331695272,1720653036489,-419.55,0.00013867,2]
[331695273,1720653036498,-3000.0,0.0001388,2]
[331695274,1720653036510,-200.0,0.00013888,2]
[331695275,1720653036519,-175.29870113,0.00013889,2]
[331695276,1720653036528,-150.0,0.00013897,2]
[331695277,1720653036538,-299.1423514,0.00013899,2]
[331695278,1720653036548,-419.43,0.000139,2]
[331695279,1720653036557,-854.93,0.000139,2]
[331695280,1720653036567,-854.93,0.000139,2]
[331695281,1720653036576,-419.43,0.000139,2]
[331695282,1720653036586,-175.98533304,0.000139,2]
[331695283,1720653036595,-6627.8655289,0.000139,2]
[331695284,1720653036605,-500.0,0.00013909,2]
[331695285,1720653036616,-500.0,0.00013909,2]
[331695286,1720653036626,-416.79,0.00013909,2]
[331695287,1720653036637,-2369.38,0.00013909,2]
[331695288,1720653036646,-695.01,0.00013909,2]
[331695289,1720653036655,-500.0,0.00013917,2]
[331695290,1720653036665,-500.0,0.00013917,2]
[331695291,1720653036674,-1358.35,0.00013917,2]
[331695292,1720653036684,-4330.04,0.00013917,2]
[331695293,1720653036694,-188.02,0.00013921,2]
[331695294,1720653036704,-499.41,0.00013921,2]
[331695295,1720653036713,-3958.74,0.00013921,2]
[331695296,1720653036723,-254.26,0.00013921,2]
[331695297,1720653036733,-498.59,0.00013921,2]
[331695298,1720653036743,-1092.82,0.00013921,2]
[331695299,1720653036752,-500.0,0.00013921,2]
[331695300,1720653036762,-334.86,0.00013921,2]
[331695301,1720653036771,-500.0,0.00013921,2]
[331695302,1720653036781,-233.73,0.00013922,2]
[331695303,1720653036791,-244.34,0.00013922,2]
[331695304,1720653036800,-3000.0,0.0001396,2]
[331695305,1720653036809,-525.5378307,0.00013964,2]
[331695306,1720653036819,-500.0,0.00013964,2]
[331695307,1720653036828,-2369.38,0.00013964,2]
[331695308,1720653036838,-695.01,0.00013964,2]
[331695309,1720653036847,-500.0,0.00013972,2]
[331695310,1720653036856,-500.0,0.00013972,2]
[331695311,1720653036866,-1358.35,0.00013972,2]
[331695312,1720653036875,-4330.04,0.00013972,2]
[331695313,1720653036885,-3958.74,0.00013976,2]
[331695314,1720653036894,-1092.82,0.00013976,2]
[331695315,1720653036903,-500.0,0.00013976,2]
[331695316,1720653036913,-637.60218502,0.00013976,2]
[331695317,1720653036923,-474.52583922,0.00013989,2]
[331695318,1720653036932,-242.43380697,0.00013989,2]
[331695319,1720653036941,-450.20947625,0.0001399,2]
[331695320,1720653036950,-450.20947625,0.0001399,2]
[331695321,1720653036960,-450.20947625,0.0001399,2]
[331695322,1720653036969,-165.68246613,0.00013997,2]
[331695323,1720653036978,-1325.45972904,0.00013997,2]
[331695324,1720653036988,-500.0,0.00013999,2]
[331695325,1720653036997,-500.0,0.00013999,2]
[331695326,1720653037007,-500.0,0.00013999,2]
[331695327,1720653037016,-500.0,0.00013999,2]
[331695328,1720653037026,-500.0,0.00013999,2]
[331695329,1720653037035,-500.0,0.00013999,2]
[331695330,1720653037044,-500.0,0.00013999,2]
[331695331,1720653037054,-500.0,0.00013999,2]
[331695332,1720653037063,-500.0,0.00013999,2]
[331695333,1720653037072,-500.0,0.00013999,2]
[331695334,1720653037082,-500.0,0.00013999,2]
[331695335,1720653037092,-600.06,0.00013999,2]
[331695336,1720653037101,-500.0,0.00013999,2]
[331695337,1720653037111,-500.0,0.00013999,2]
[331695338,1720653037120,-500.0,0.00013999,2]
[331695339,1720653037130,-500.0,0.00013999,2]
[331695340,1720653037139,-500.0,0.00013999,2]
[331695341,1720653037149,-500.0,0.00013999,2]
[331695342,1720653037159,-500.0,0.00013999,2]
[331695343,1720653037169,-500.0,0.00013999,2]
[331695344,1720653037178,-500.0,0.00013999,2]
[331695345,1720653037188,-541.23,0.00013999,2]
[331695346,1720653037198,-500.0,0.00013999,2]
[331695347,1720653037207,-500.0,0.00013999,2]
[331695348,1720653037216,-500.0,0.00013999,2]
[331695349,1720653037226,-500.0,0.00013999,2]
[331695350,1720653037236,-500.0,0.00013999,2]
[331695351,1720653037245,-596.06,0.00013999,2]
[331695352,1720653037254,-500.0,0.00013999,2]
[331695353,1720653037263,-648.10089395,0.00013999,2]
[331695354,1720653037272,-574.23,0.00013999,2]
[331695355,1720653037281,-500.0,0.00013999,2]
[331695356,1720653037291,-500.0,0.00013999,2]
[331695357,1720653037300,-500.0,0.00013999,2]
[331695358,1720653037309,-500.0,0.00013999,2]
[331695359,1720653037319,-500.0,0.00013999,2]
[331695360,1720653037328,-500.0,0.00013999,2]
[331695361,1720653037337,-500.0,0.00013999,2]
[331695362,1720653037347,-275.29411076,0.00013999,2]
[331695363,1720653037356,-158.57970611,0.00013999,2]
[331695364,1720653037365,-12561.82704476,0.00014,2]
[331695365,1720653037381,-527.06338007,0.00014,2]
[331695366,1720653037393,-1904.64529424,0.00014,2]
[331695367,1720653037405,-630863.52004503,0.00014,2]
[331695369,1720653038237,-163.33113184,0.0001379,2]
[331695370,1720653038248,-437.16886816,0.000138,2]
[331695371,1720653038310,-630.83113184,0.000138,2]
[331695372,1720653038320,-297.95359268,0.00013989,2]
[331695373,1720653038330,-227.29136124,0.00013989,2]
[331695374,1720653038340,-437.42787667,0.00013989,2]
[331695375,1720653038350,-1316.42403726,0.00014,2]
[331695376,1720653038522,-11051.09671202,0.00014,2]
[331695377,1720653038535,-372.94911677,0.00014,2]
[331695378,1720653038547,-1714.02530894,0.00014,2]
[331695379,1720653038559,-1796.89461879,0.00014,2]
[331695380,1720653038908,-473.3383626,0.00014,2]
[331695497,1720653040276,-1661.8907034,0.00014,2]
[331695499,1720653040289,-32332.34669367,0.00014,2]
[331695534,1720653040715,-1114.04420081,0.00014,2]
[331695535,1720653040957,-158180.79394596,0.00014,2]
[331695537,1720653040969,-825.15284921,0.00014,2]
[331695538,1720653040980,-1595.00618646,0.00014,2]
[331695539,1720653040993,-1950.0,0.00014,2]
[331695540,1720653041021,-1465.41185795,0.00014,2]
[331695541,1720653041032,-4661.7770805,0.00014,2]
[331695542,1720653041043,-600.96056067,0.00014,2]
[331695554,1720653044481,-357.69482547,0.00013543,2]
[331695560,1720653046884,-327.30591058,0.00013543,2]
[331695561,1720653046894,-286.181922,0.00013721,2]
[331695562,1720653046903,-163.33113184,0.0001379,2]
[331695563,1720653046912,-5292.4648418,0.00014,2]
[331695564,1720653046934,-507.53028692,0.000139,2]
[331695565,1720653046945,-3034.69999998,0.000139,2]
[331695566,1720653046956,-3814.16275431,0.000139,2]
[331695567,1720653046966,-122308.81864265,0.00014,2]
[331695568,1720653047007,-163.33113184,0.0001379,2]
[331695569,1720653047018,-199.35294347,0.00014,2]
[331695570,1720653047031,-429.34971866,0.00014,2]
[331695571,1720653047042,-621.48668393,0.00014,2]
[331695572,1720653047054,-888.20310707,0.00014,2]
[331695573,1720653047259,-347.408346,0.00014,2]
[331695574,1720653047270,-56250.86493364,0.00014,2]
[331695575,1720653047280,-244020.95280392,0.00014,2]
[331695576,1720653047291,-1673.90953421,0.00014,2]
[331695577,1720653047302,-712.46780598,0.00014,2]
[331695578,1720653047313,-3930.81363626,0.00014,2]
[331695579,1720653047324,-525.46393457,0.00014,2]
[331695580,1720653213485,2826.2577168,0.00011199,2]
[331695581,1720653334374,1286.76187843,0.00011199,2]
[331695584,1720653442859,276.67193521,0.00011199,2]
[331695585,1720653485846,316.92109107,0.00011199,2]
[331695586,1720653486519,251.29007548,0.00011199,2]
[331695587,1720653495318,158.36295675,0.00011199,2]
[331695588,1720653499443,431.26485321,0.00011199,2]
[331695589,1720653511748,433.27,0.00010901,2]
[331695590,1720653525291,296.82049777,0.00011199,2]
[331695591,1720653542607,227.29136124,0.00011199,2]
[331695592,1720653593263,16630.83729153,0.00011199,2]
[331695597,1720653740706,368.79775869,0.00011199,2]
[331695598,1720653789332,155.0,0.00011199,2]
[331695600,1720653836293,887.22900173,0.00011199,2]
[331695603,1720653983420,151.071108,0.00025,63]
[331695604,1720653986506,151.071108,0.00025,64]
[331695605,1720653989529,151.071108,0.00025,65]
[331695607,1720653993463,151.071108,0.00025,66]
[331695609,1720654000442,151.071108,0.00025,70]
[331695610,1720654004104,151.071108,0.00025,71]
[331695611,1720654008279,151.071108,0.00025,72]
[331695613,1720654011738,151.071108,0.00025,73]
[331695615,1720654016580,151.071108,0.00025,77]
[331695616,1720654020530,151.071108,0.00025,78]
[331695617,1720654023452,151.071108,0.00025,79]
[331695618,1720654027447,151.071108,0.00025,80]
[331695620,1720654034583,151.071108,0.00025,63]
[331695626,1720654070623,227.29136124,0.00011199,2]
[331695629,1720654143261,411.6,0.00010867,2]
[331695669,1720654232447,-204.14,0.00012435,2]
[331695670,1720654232456,-250.0,0.00012435,2]
[331695671,1720654232465,-1387.733275,0.00012537,2]
[331695672,1720654232475,-150.0,0.000126,2]
[331695673,1720654232484,-5022.33,0.00012771,2]
[331695674,1720654232493,-200.0,0.00012795,2]
[331695675,1720654232502,-250.0,0.00012797,2]
[331695676,1720654232511,-300.0,0.00012807,2]
[331695677,1720654232520,-23349.35,0.00012808,2]
[331695678,1720654232530,-1000.0,0.00012816,2]
[331695679,1720654232539,-154.51,0.00012826,2]
[331695680,1720654232548,-150.99,0.00012901,2]
[331695681,1720654232558,-150.99,0.00012901,2]
[331695682,1720654232567,-1250.0,0.00013,2]
[331695683,1720654232577,-411.6,0.00013131,2]
[331695684,1720654232586,-150.0,0.00013203,2]
[331695685,1720654232595,-41426.54984264,0.00013204,2]
[331695697,1720654233334,-25559.9351049,0.00013204,2]
[331695698,1720654233346,-286.18192272,0.00013204,2]
[331695699,1720654233362,-20203.69552974,0.00013204,2]
[331695700,1720654233372,-419.43,0.000133,2]
[331695701,1720654233382,-1500.0,0.00013498,2]
[331695702,1720654233392,-263.75418329,0.00013516,2]
[331695703,1720654233402,-227.29136124,0.00013516,2]
[331695704,1720654233412,-1500.0,0.0001356,2]
[331695705,1720654233421,-500.0,0.00013698,2]
[331695706,1720654233430,-500.0,0.00013698,2]
[331695707,1720654233443,-500.0,0.00013698,2]
[331695708,1720654233452,-437.47,0.00013699,2]
[331695709,1720654233462,-250.0,0.00013699,2]
[331695710,1720654233471,-1670.74,0.00013699,2]
[331695711,1720654233481,-150.0,0.00013745,2]
[331695712,1720654233490,-150.0,0.00013751,2]
[331695713,1720654233499,-500.0,0.00013753,2]
[331695714,1720654233509,-627.19,0.00013753,2]
[331695715,1720654233521,-560.69,0.00013753,2]
[331695716,1720654233531,-150.0,0.00013753,2]
[331695717,1720654233541,-150.0,0.00013764,2]
[331695718,1720654233551,-175.75718941,0.00013767,2]
[331695719,1720654233560,-150.0,0.00013776,2]
[331695720,1720654233570,-163.33113184,0.00013796,2]
[331695721,1720654233580,-150.0,0.00013796,2]
[331695722,1720654233591,-500.0,0.00013808,2]
[331695723,1720654233600,-150.0,0.00013836,2]
[331695724,1720654233610,-150.0,0.00013839,2]
[331695725,1720654233619,-163.33113184,0.00013848,2]
[331695726,1720654233629,-150.0,0.00013862,2]
[331695727,1720654233638,-500.0,0.00013863,2]
[331695728,1720654233648,-1500.0,0.00013864,2]
[331695729,1720654233992,-1375.80005,0.0001388,2]
[331695730,1720654234003,-200.0,0.00013888,2]
[331695731,1720654234013,-620.10900742,0.000139,2]
[331695732,1720654234023,-2809.947,0.000139,2]
[331695733,1720654234032,-174.58989142,0.000139,2]
[331695734,1720654234042,-169.99561809,0.000139,2]
[331695735,1720654234052,-770.89495388,0.000139,2]
[331695736,1720654234062,-163.33113184,0.000139,2]
[331695737,1720654234072,-334.06969511,0.000139,2]
[331695738,1720654234081,-150.0,0.000139,2]
[331695739,1720654234091,-500.0,0.00013917,2]
[331695740,1720654234101,-150.0,0.00013918,2]
[331695741,1720654234110,-150.0,0.00013919,2]
[331695742,1720654234119,-150.0,0.00013933,2]
[331695743,1720654234130,-150.0,0.00013934,2]
[331695744,1720654234139,-150.0,0.00013935,2]
[331695745,1720654234149,-150.0,0.00013936,2]
[331695746,1720654234158,-150.0,0.00013944,2]
[331695747,1720654234169,-150.0,0.00013952,2]
[331695748,1720654234179,-150.0,0.00013954,2]
[331695749,1720654234190,-1500.0,0.00013958,2]
[331695750,1720654234200,-1375.80005,0.0001396,2]
[331695751,1720654234211,-150.0,0.00013967,2]
[331695752,1720654234222,-500.0,0.00013972,2]
[331695753,1720654234232,-1500.0,0.00013979,2]
[331695754,1720654234242,-150.0,0.0001398,2]
[331695755,1720654234251,-150.0,0.00013983,2]
[331695756,1720654234261,-150.0,0.00013984,2]
[331695757,1720654234271,-175.75718941,0.00013986,2]
[331695758,1720654234281,-204.14,0.00013989,2]
[331695759,1720654234291,-300.0,0.00013989,2]
[331695760,1720654234302,-150.0,0.00013996,2]
[331695761,1720654234312,-500.0,0.00013999,2]
[331695762,1720654234322,-500.0,0.00013999,2]
[331695763,1720654234333,-500.0,0.00013999,2]
[331695764,1720654234343,-428.17683411,0.00013999,2]
[331695765,1720654234354,-500.0,0.00013999,2]
[331695766,1720654234365,-548.77,0.00013999,2]
[331695767,1720654234375,-500.0,0.00013999,2]
[331695768,1720654234384,-500.0,0.00013999,2]
[331695769,1720654234394,-3298.95,0.00013999,2]
[331695770,1720654234404,-286.52727637,0.00013999,2]
[331695771,1720654234414,-500.0,0.00013999,2]
[331695772,1720654234424,-500.0,0.00013999,2]
[331695773,1720654234434,-515.22,0.00013999,2]
[331695774,1720654234452,-628.93,0.00013999,2]
[331695775,1720654234464,-243.0,0.00013999,2]
[331695776,1720654234474,-1018.77,0.00013999,2]
[331695777,1720654234484,-500.0,0.00013999,2]
[331695778,1720654234494,-500.0,0.00013999,2]
[331695779,1720654234504,-500.0,0.00013999,2]
[331695780,1720654234514,-910.69,0.00013999,2]
[331695781,1720654234524,-218.39,0.00013999,2]
[331695782,1720654234535,-500.0,0.00013999,2]
[331695783,1720654234545,-500.0,0.00013999,2]
[331695784,1720654234555,-445.81,0.00013999,2]
[331695785,1720654234566,-370.15,0.00013999,2]
[331695786,1720654234576,-490.29,0.00013999,2]
[331695787,1720654234587,-218.42,0.00013999,2]
[331695788,1720654234598,-3247.53,0.00013999,2]
[331695789,1720654234608,-262.75,0.00013999,2]
[331695790,1720654234619,-1974.49,0.00013999,2]
[331695791,1720654234629,-500.0,0.00013999,2]
[331695792,1720654234639,-150.0,0.00013999,2]
[331695793,1720654234650,-379.18002137,0.00013999,2]
[331695794,1720654234660,-500.0,0.00013999,2]
[331695795,1720654234671,-500.0,0.00013999,2]
[331695796,1720654234681,-579.18,0.00013999,2]
[331695797,1720654234691,-500.0,0.00013999,2]
[331695798,1720654234700,-366705.05530701,0.00014,2]
[331695799,1720654234710,-281619.17623466,0.00014,2]
[331695800,1720654234724,-977.41231243,0.00014,2]
[331695801,1720654234737,-396.24892489,0.00014,2]
[331695806,1720654238491,-331.0,0.00014,2]
[331695879,1720654240520,-500.0,0.00013999,2]
[331695880,1720654240529,-80965.69818906,0.00014,2]
[331695881,1720654240541,-3845.00323009,0.00014,2]
[331695882,1720654240553,-1096.04159675,0.00014,2]
[331695883,1720654240565,-4341.68845553,0.00014,2]
[331695884,1720654240597,-2757.99397552,0.00014,2]
[331695885,1720654240673,-2834.67497307,0.00014,2]
[331695886,1720654240684,-962.94002193,0.00014,2]
[331695887,1720654240866,-1606.0,0.00014,2]
[331695890,1720654243493,-4595.89730165,0.00014,2]
[331695896,1720654246066,-740.76734568,0.00014,2]
[331695902,1720654246609,-500.0,0.000139,2]
[331695903,1720654246619,-22.93853237,0.00014,2]
[331695904,1720654246674,-13690.82341382,0.00014,2]
[331695905,1720654246685,-6723.95799994,0.00014,2]
[331695906,1720654246696,-301.33416204,0.00014,2]
[331695907,1720654246860,-3404.49953242,0.00014,2]
[331695910,1720654371575,500.0,0.00027,120]
[331695913,1720654445291,2281.15822566,0.000118,2]
[331695914,1720654730092,400.01,0.00010517,2]
[331695916,1720654993843,12709.0,0.00027,120]
[331695918,1720655093586,155.0,0.00011199,2]
[331695923,1720655246645,292.50326117,0.00011199,2]
[331695926,1720655293191,506.95,0.00027,120]
[331695928,1720655301214,380.0,0.00010517,2]
[331695956,1720655393858,209.76771483,0.00011199,2]
[331695957,1720655431456,-331.63513846,0.00012314,2]
[331695958,1720655431466,-800.0,0.00012435,2]
[331695959,1720655431476,-184.81,0.00012435,2]
[331695960,1720655431486,-200.0,0.00012747,2]
[331695961,1720655431496,-154.51,0.00012752,2]
[331695962,1720655431505,-250.0,0.00012755,2]
[331695963,1720655431516,-482.0,0.00012755,2]
[331695964,1720655431527,-194.73926154,0.00012761,2]
[331695965,1720655431543,-55.26073846,0.00012761,2]
[331695966,1720655431554,-380.0,0.00012781,2]
[331695967,1720655431566,-173.6922506,0.00013128,2]
[331695968,1720655431577,-150.0,0.00013315,2]
[331695969,1720655431587,-103.06801094,0.00013352,2]
[331695970,1720655431600,-114.93198906,0.00013352,2]
[331695971,1720655431611,-155.0,0.00013472,2]
[331695972,1720655431622,-75.56801094,0.00013584,2]
[331695973,1720655431636,-424.42198906,0.00013584,2]
[331695974,1720655431646,-150.0,0.00013632,2]
[331695975,1720655431656,-577.47,0.00013699,2]
[331695976,1720655431665,-250.0,0.00013699,2]
[331695977,1720655431676,-4287.7009,0.000137,2]
[331695978,1720655431686,-212.502,0.000137,2]
[331695979,1720655431697,-150.0,0.000137,2]
[331695980,1720655431708,-354.33,0.000137,2]
[331695981,1720655431720,-1037.15452239,0.0001372,2]
[331695982,1720655431729,-1026.83021075,0.0001372,2]
[331695983,1720655431739,-150.99,0.00013721,2]
[331695984,1720655431749,-300.0,0.00013725,2]
[331695985,1720655431760,-150.0,0.00013725,2]
[331695986,1720655431772,-1500.0,0.00013726,2]
[331695987,1720655431783,-300.0,0.00013733,2]
[331695988,1720655431794,-1500.0,0.00013734,2]
[331695989,1720655431806,-1500.0,0.00013738,2]
[331695990,1720655431817,-1500.0,0.0001374,2]
[331695991,1720655431828,-1500.0,0.00013748,2]
[331695992,1720655431840,-1500.0,0.00013749,2]
[331695993,1720655431851,-1500.0,0.0001375,2]
[331695994,1720655431861,-1500.0,0.00013758,2]
[331695995,1720655431871,-1500.0,0.00013775,2]
[331695996,1720655431885,-1500.0,0.00013779,2]
[331695997,1720655431895,-1500.0,0.00013784,2]
[331695998,1720655431906,-300.0,0.00013784,2]
[331695999,1720655431915,-300.0,0.00013785,2]
[331696000,1720655431925,-300.0,0.00013791,2]
[331696001,1720655431935,-500.0,0.00013799,2]
[331696002,1720655431945,-3161.49,0.00013799,2]
[331696003,1720655431955,-565.56,0.00013799,2]
[331696004,1720655431964,-468.619998,0.00013799,2]
[331696005,1720655431974,-872.74,0.00013799,2]
[331696006,1720655431983,-976.32,0.00013799,2]
[331696007,1720655431993,-574.73366478,0.00013799,2]
[331696008,1720655432002,-500.0,0.00013799,2]
[331696009,1720655432012,-3112.22,0.00013799,2]
[331696010,1720655432021,-1892.22,0.00013799,2]
[331696011,1720655432031,-555.05,0.00013799,2]
[331696012,1720655432040,-4026.7005,0.000138,2]
[331696013,1720655432050,-71954.62158351,0.000138,2]
[331696014,1720655432063,-3144.07254094,0.000138,2]
[331696015,1720655432075,-559.75762178,0.000138,2]
[331696016,1720655432087,-208120.88545377,0.000138,2]
[331696017,1720655432097,-234.16996596,0.000138,2]
[331696018,1720655432215,-1500.0,0.00013806,2]
[331696019,1720655432225,-1500.0,0.00013807,2]
[331696020,1720655432237,-1500.0,0.00013812,2]
[331696021,1720655432246,-1500.0,0.00013817,2]
[331696022,1720655432256,-300.0,0.00013819,2]
[331696023,1720655432265,-1500.0,0.00013822,2]
[331696024,1720655432275,-1500.0,0.00013831,2]
[331696025,1720655432284,-300.0,0.00013833,2]
[331696026,1720655432295,-300.0,0.00013835,2]
[331696027,1720655432304,-300.0,0.00013842,2]
[331696028,1720655432313,-300.0,0.00013846,2]
[331696029,1720655432324,-3161.49,0.00013854,2]
[331696030,1720655432335,-872.74,0.00013854,2]
[331696031,1720655432346,-976.32,0.00013854,2]
[331696032,1720655432357,-500.0,0.00013854,2]
[331696033,1720655432369,-3112.22,0.00013854,2]
[331696034,1720655432379,-1892.22,0.00013854,2]
[331696035,1720655432393,-555.05,0.00013854,2]
[331696036,1720655432403,-300.0,0.00013857,2]
[331696037,1720655432413,-1500.0,0.00013859,2]
[331696038,1720655432422,-1375.80005,0.0001386,2]
[331696039,1720655432433,-1375.80005,0.0001386,2]
[331696040,1720655432443,-1375.80005,0.0001386,2]
[331696041,1720655432454,-1375.80006,0.0001386,2]
[331696042,1720655432464,-1500.0,0.00013866,2]
[331696043,1720655432474,-385.10220627,0.00013866,2]
[331696044,1720655432485,-1500.0,0.00013868,2]
[331696045,1720655432495,-1500.0,0.00013868,2]
[331696046,1720655432504,-1500.0,0.00013876,2]
[331696047,1720655432516,-6760.30143775,0.0001388,2]
[331696048,1720655432527,-1500.0,0.0001388,2]
[331696049,1720655432536,-300.0,0.00013881,2]
[331696050,1720655432548,-861.58439348,0.00013883,2]
[331696051,1720655432559,-1500.0,0.00013893,2]
[331696052,1720655432570,-344.12345252,0.00013899,2]
[331696053,1720655432581,-1000.0,0.000139,2]
[331696054,1720655432591,-2778.0244,0.000139,2]
[331696055,1720655432601,-164234.5247,0.000139,2]
[331696056,1720655432611,-932.12,0.000139,2]
[331696057,1720655432622,-9016.1602,0.000139,2]
[331696058,1720655432632,-171.61014676,0.000139,2]
[331696059,1720655432643,-174.58989141,0.000139,2]
[331696060,1720655432655,-169.99561806,0.000139,2]
[331696061,1720655432665,-937.75520323,0.000139,2]
[331696062,1720655432674,-1500.0,0.00013901,2]
[331696063,1720655432685,-1500.0,0.00013905,2]
[331696064,1720655432697,-3161.49,0.00013909,2]
[331696065,1720655432709,-872.74,0.00013909,2]
[331696066,1720655432720,-976.32,0.00013909,2]
[331696067,1720655432732,-500.0,0.00013909,2]
[331696068,1720655432743,-3112.22,0.00013909,2]
[331696069,1720655432755,-1892.22,0.00013909,2]
[331696070,1720655432765,-555.05,0.00013909,2]
[331696071,1720655432776,-300.0,0.00013917,2]
[331696072,1720655432790,-1500.0,0.00013919,2]
[331696073,1720655432800,-300.0,0.00013922,2]
[331696074,1720655432811,-1500.0,0.00013925,2]
[331696075,1720655432823,-300.0,0.00013927,2]
[331696076,1720655432833,-300.0,0.00013931,2]
[331696077,1720655432845,-1500.0,0.00013932,2]
[331696078,1720655432857,-300.0,0.00013932,2]
[331696079,1720655432867,-1500.0,0.00013935,2]
[331696080,1720655432876,-1500.0,0.0001394,2]
[331696081,1720655432886,-1500.0,0.0001394,2]
[331696082,1720655432896,-722.81511359,0.00013946,2]
[331696083,1720655432908,-1500.0,0.0001395,2]
[331696084,1720655432917,-1500.0,0.00013956,2]
[331696085,1720655432926,-1500.0,0.00013962,2]
[331696086,1720655432943,-3161.49,0.00013964,2]
[331696087,1720655432955,-872.74,0.00013964,2]
[331696088,1720655432964,-976.32,0.00013964,2]
[331696089,1720655432974,-464.359999,0.00013964,2]
[331696090,1720655432983,-3112.22,0.00013964,2]
[331696091,1720655432993,-1892.22,0.00013964,2]
[331696092,1720655433002,-555.05,0.00013964,2]
[331696093,1720655433011,-1500.0,0.00013965,2]
[331696094,1720655433020,-300.0,0.00013969,2]
[331696095,1720655433029,-1500.0,0.0001397,2]
[331696096,1720655433039,-300.0,0.00013972,2]
[331696097,1720655433048,-1500.0,0.00013978,2]
[331696098,1720655433057,-1500.0,0.00013981,2]
[331696099,1720655433067,-1500.0,0.00013986,2]
[331696100,1720655433076,-300.0,0.00013986,2]
[331696101,1720655433085,-800.0,0.00013989,2]
[331696102,1720655433094,-184.81,0.00013989,2]
[331696103,1720655433103,-300.0,0.00013996,2]
[331696104,1720655433113,-1500.0,0.00013998,2]
[331696105,1720655433122,-500.0,0.00013999,2]
[331696106,1720655433132,-237.07,0.00013999,2]
[331696107,1720655433143,-562.82,0.00013999,2]
[331696108,1720655433151,-500.0,0.00013999,2]
[331696109,1720655433162,-500.0,0.00013999,2]
[331696110,1720655433172,-208.85960575,0.00013999,2]
[331696111,1720655433182,-182591.71548657,0.00014,2]
[331696112,1720655433192,-67932.87182667,0.00014,2]
[331696113,1720655433384,-7447.32319545,0.00014,2]
[331696114,1720655433395,-360.246502,0.00014,2]
[331696115,1720655433426,-25864.30413319,0.00014,2]
[331696116,1720655433439,-1014.49527773,0.00014,2]
[331696121,1720655437596,-428.88378944,0.000139,2]
[331696122,1720655437606,-760.29276912,0.00014,2]